bitfinex-derivatives/quotes_ETHF0:USTF0_20250123
["timestamp","ask_amount","ask_price","bid_price","bid_amount"]
[1737609041676,0.62344,3210.4,3210.3,44.0078]
[1737609046072,3.08927117,3210.4,3210.3,44.0078]
[1737609046273,0.62351,3210.0,3209.9,0.0046705]
[1737609046674,0.62351,3210.0,3209.9,40.8046705]
[1737609046977,0.67662482,3210.0,3209.9,40.8046705]
[1737609047374,0.67662482,3210.0,3209.9,0.0046705]
[1737609049380,4.79884762,3210.0,3209.9,0.0046705]
[1737609050280,2.46583117,3210.1,3209.9,0.0046705]
[1737609050489,3.08934117,3210.1,3209.9,0.0046705]
[1737609050686,0.62351,3210.0,3209.9,0.0046705]
[1737609051175,0.62351,3210.0,3209.9,5.1123705]
[1737609052582,0.67662778,3210.0,3209.9,5.1123705]
[1737609052779,0.6766258,3210.0,3209.9,0.0046705]
[1737609055384,0.62351,3210.0,3209.9,0.0046705]
[1737609056379,0.67662522,3210.0,3209.9,0.0046705]
[1737609056791,5.1803,3210.3,3209.9,0.0046705]
[1737609057083,0.62351,3210.0,3209.9,0.0046705]
[1737609057480,0.62351,3210.0,3209.9,40.8046705]
[1737609057684,5.1803,3210.3,3209.9,40.8046705]
[1737609057886,0.0046705,3210.6,3210.2,3.2078]
[1737609058080,0.62343,3210.5,3210.3,12.9322]
[1737609058887,0.0046705,3210.6,3210.3,12.9322]
[1737609059083,0.62344,3210.4,3210.3,12.9322]
[1737609062492,0.0046705,3210.6,3210.3,12.9322]
[1737609062792,0.62344,3210.4,3210.3,12.9322]
[1737609063884,0.62343,3210.5,3210.3,12.9322]
[1737609064092,0.6280805,3210.6,3210.3,12.9322]
[1737609065181,0.0046705,3210.6,3210.3,12.9322]
[1737609065489,0.62343,3210.5,3210.3,12.9322]
[1737609066492,0.6280805,3210.6,3210.3,12.9322]
[1737609067389,0.0046705,3210.6,3210.3,12.9322]
[1737609067694,0.0046705,3210.6,3210.3,13.55565]
[1737609068286,0.0046705,3210.6,3210.3,12.9322]
[1737609068593,0.0046705,3210.6,3210.3,13.55565]
[1737609069189,0.0046705,3210.6,3210.3,12.9322]
[1737609069399,0.0046705,3210.6,3210.5,0.62342]
[1737609069590,0.0046705,3210.6,3210.3,12.9322]
[1737609069895,0.0046705,3210.6,3210.3,13.55565]
[1737609070291,0.0046705,3210.6,3210.5,0.62342]
[1737609070598,0.0046705,3210.6,3210.3,13.55565]
[1737609071192,0.0046705,3210.6,3210.4,0.62343]
[1737609072293,0.0046705,3210.6,3210.3,12.9322]
[1737609072498,0.0046705,3210.6,3210.5,0.62342]
[1737609072694,0.6233,3211.2,3210.7,0.62337]
[1737609073190,0.6233,3211.1,3210.8,40.8]
[1737609073395,2.46583117,3211.3,3211.0,3.2078]
[1737609073698,0.62328,3211.2,3211.0,3.2078]
[1737609074097,2.46583117,3211.3,3211.0,3.2078]
[1737609074288,0.62329,3211.2,3211.0,3.2078]
[1737609074688,3.08910117,3211.3,3211.0,3.2078]
[1737609075289,2.46583117,3211.3,3211.0,3.2078]
[1737609075495,0.62328,3211.2,3211.0,3.2078]
[1737609075799,0.62328,3211.2,3211.1,3.1668]
[1737609078803,0.6233,3211.1,3211.0,3.2078]
[1737609079001,2.46583117,3211.3,3210.9,5.8838]
[1737609079204,6.04635117,3211.0,3210.9,5.8838]
[1737609079499,6.09938758,3211.0,3210.9,2.9217]
[1737609082307,6.09937839,3211.0,3210.9,2.9217]
[1737609084595,2.46583117,3211.3,3210.9,2.9217]
[1737609084800,6.2961,3211.5,3210.9,2.9217]
[1737609085002,0.67625353,3211.4,3210.9,3.54503]
[1737609085206,0.62327,3211.3,3211.0,40.8]
[1737609085400,0.62327,3211.3,3211.0,44.0078]
[1737609085603,0.62324,3211.4,3211.0,44.0078]
[1737609085804,0.62328,3211.3,3211.0,44.0078]
[1737609086206,3.0883,3211.5,3211.0,44.0078]
[1737609086510,0.05300404,3211.4,3211.0,44.0078]
[1737609086715,13.45275428,3211.7,3211.0,44.0078]
[1737609086921,14.07594428,3211.7,3211.2,0.62328]
[1737609087212,14.07594428,3211.7,3211.3,3.1099]
[1737609087411,0.62324,3211.4,3211.3,3.1099]
[1737609087806,2.86892583,3211.6,3211.0,44.0078]
[1737609088006,0.6233,3211.1,3211.0,47.1177]
[1737609090518,0.6233,3211.2,3211.0,47.1177]
[1737609091027,0.6233,3211.1,3211.0,47.1177]
[1737609091715,0.62329,3211.2,3211.0,47.1177]
[1737609092524,0.6233,3211.1,3211.0,47.1177]
[1737609093623,0.6233,3211.1,3211.0,44.0078]
[1737609093821,0.62342,3210.5,3210.4,6.0723]
[1737609094123,3.14221669,3210.5,3210.4,3.2078]
[1737609094320,3.14221498,3210.5,3210.4,3.2078]
[1737609094527,3.08925117,3210.5,3210.4,3.2078]
[1737609094729,3.14221303,3210.5,3210.4,3.2078]
[1737609095829,2.46583117,3210.5,3210.4,3.2078]
[1737609096531,0.62339,3210.7,3210.4,3.2078]
[1737609096835,0.62339,3210.7,3210.5,40.8]
[1737609097025,3.08920117,3210.8,3210.6,5.8422]
[1737609097221,2.46583117,3210.8,3210.6,5.8422]
[1737609097529,0.62338,3210.7,3210.6,5.8422]
[1737609097722,3.56198,3210.7,3210.6,5.8422]
[1737609106133,0.62351,3210.0,3209.9,3.2124705]
[1737609106434,3.08934117,3210.0,3209.9,3.2124705]
[1737609106829,3.08934117,3210.0,3209.9,5.9504705]
[1737609107032,0.62351,3210.0,3209.9,5.9504705]
[1737609107732,0.62351,3210.0,3209.9,8.7810705]
[1737609110535,2.46583117,3210.3,3209.9,8.7810705]
[1737609110730,0.62351,3210.0,3209.9,8.7810705]
[1737609110939,0.6235,3210.1,3209.9,8.7810705]
[1737609112137,0.62351,3210.0,3209.9,8.7810705]
[1737609114635,3.08934117,3210.0,3209.9,0.0046705]
[1737609114937,3.08934117,3210.0,3209.5,40.8]
[1737609114938,0.62357,3209.7,3209.6,2.7661]
[1737609115143,3.08940117,3209.7,3209.6,2.7661]
[1737609116147,0.62357,3209.7,3209.6,2.7661]
[1737609118042,2.47050167,3210.0,3209.6,2.7661]
[1737609118244,3.09401167,3210.0,3209.9,3.2078]
[1737609118539,0.62357,3209.7,3209.6,2.7661]
[1737609121744,2.47050167,3210.0,3209.6,2.7661]
[1737609121939,2.47050167,3210.0,3209.9,3.2078]
[1737609122140,3.14701517,3210.0,3209.9,3.2078]
[1737609122943,0.6281805,3210.0,3209.9,3.2078]
[1737609123935,3.09401167,3210.0,3209.9,3.2078]
[1737609124139,0.62353,3209.9,3209.8,2.1743]
[1737609124344,0.62357,3209.7,3209.6,2.7661]
[1737609124544,3.1424288,3209.7,3209.6,2.7661]
[1737609127649,3.08940117,3209.7,3209.6,2.7661]
[1737609128239,0.62345,3210.4,3209.7,0.62357]
[1737609128545,0.6235,3210.1,3210.0,3.2078]
[1737609128844,3.08933117,3210.1,3210.0,3.2078]
[1737609129148,3.08933117,3210.1,3210.0,44.0078]
[1737609129542,3.14238894,3210.1,3210.0,44.0078]
[1737609129850,0.62357,3209.7,3209.6,2.7661]
[1737609130049,2.46583117,3209.8,3209.6,2.7661]
[1737609130245,2.0737,3210.0,3209.6,2.7661]
[1737609130246,0.62353,3209.9,3209.6,43.5661]
[1737609130446,0.62356,3209.8,3209.6,43.5661]
[1737609130646,2.0737,3210.0,3209.6,43.5661]
[1737609130647,0.62352,3210.0,3209.6,43.5661]
[1737609131651,0.62354,3209.9,3209.6,43.5661]
[1737609131855,0.62352,3210.0,3209.6,43.5661]
[1737609132153,2.46583117,3210.1,3209.6,43.5661]
[1737609132354,0.62354,3209.9,3209.6,43.5661]
[1737609136343,2.46583117,3210.1,3209.6,43.5661]
[1737609136548,0.05311085,3210.0,3209.6,43.5661]
[1737609136749,0.62357,3209.7,3209.6,43.5661]
[1737609137848,0.62357,3209.7,3209.6,2.7661]
[1737609138249,0.67667054,3209.7,3209.6,2.7661]
[1737609139051,0.62357,3209.7,3209.6,2.7661]
[1737609140049,0.67665798,3209.7,3209.6,2.7661]
[1737609140358,0.62359,3209.6,3209.5,3.2078]
[1737609140650,0.67667798,3209.6,3209.5,3.2078]
[1737609140855,0.67667798,3209.6,3209.5,5.4166]
[1737609141052,0.05307461,3209.6,3209.5,5.4166]
[1737609141551,0.05307461,3209.6,3209.5,46.2166]
[1737609141756,0.62359,3209.7,3209.5,46.2166]
[1737609142760,2.46583117,3209.8,3209.5,46.2166]
[1737609142956,0.62359,3209.6,3209.5,46.2166]
[1737609143859,0.67670163,3209.6,3209.5,46.2166]
[1737609144361,0.67670787,3209.6,3209.5,46.2166]
[1737609144563,0.67670787,3209.6,3209.5,44.0078]
[1737609145056,0.67670787,3209.6,3209.5,46.2955]
[1737609145966,0.67670787,3209.6,3209.5,3.2078]
[1737609146561,0.67670787,3209.6,3209.5,5.4955]
[1737609147459,0.67670787,3209.6,3209.5,3.2078]
[1737609147762,0.6767116,3209.6,3209.5,3.2078]
[1737609149064,0.6767116,3209.6,3209.5,5.4916]
[1737609149565,0.6767116,3209.6,3209.5,3.2078]
[1737609149958,0.67672164,3209.6,3209.5,3.2078]
[1737609152051,0.62361,3209.5,3209.4,3.401]
[1737609152256,3.14257281,3209.5,3209.4,3.401]
[1737609153565,0.67674164,3209.5,3209.4,3.401]
[1737609155867,0.62359,3209.6,3209.4,6.6088]
[1737609156367,0.62361,3209.5,3209.4,6.6088]
[1737609158765,2.46583117,3209.9,3209.4,6.6088]
[1737609159069,0.62359,3209.7,3209.4,6.6088]
[1737609159667,0.62359,3209.6,3209.4,6.6088]
[1737609160171,0.62361,3209.5,3209.4,6.6088]
[1737609167371,0.62361,3209.6,3209.4,6.6088]
[1737609167775,2.46583117,3209.9,3209.4,6.6088]
[1737609167975,0.05316718,3209.8,3209.4,6.6088]
[1737609168176,0.6236,3209.6,3209.4,6.6088]
[1737609169368,0.62361,3209.5,3209.4,6.6088]
[1737609169975,0.62361,3209.5,3209.4,47.4088]
[1737609182882,0.67675812,3209.5,3209.4,47.4088]
[1737609183178,0.67675812,3209.5,3209.4,46.3141]
[1737609183575,0.67675812,3209.5,3209.4,2.3063]
[1737609183576,3.88455812,3209.5,3209.4,2.3063]
[1737609183878,4.2895773,3209.5,3209.4,0.69339099]
[1737609184273,1.08173713,3209.5,3209.4,0.69339099]
[1737609184485,0.67671795,3209.5,3209.4,3.90119099]
[1737609185375,0.67671795,3209.5,3209.4,44.70119099]
[1737609189084,0.62361,3209.5,3209.4,3.90119099]
[1737609189275,0.67674776,3209.5,3209.4,3.90119099]
[1737609190886,0.67674563,3209.5,3209.4,3.90119099]
[1737609191387,0.676748,3209.5,3209.4,3.90119099]
[1737609194288,0.67677148,3209.5,3209.4,3.90119099]
[1737609195983,0.67677242,3209.5,3209.4,3.90119099]
[1737609200892,0.62361,3209.5,3209.4,3.90119099]
[1737609201190,0.67676063,3209.5,3209.4,3.90119099]
[1737609203588,0.67676042,3209.5,3209.4,3.90119099]
[1737609207000,0.67676042,3209.5,3209.4,0.69339099]
[1737609211812,1.84357131,3209.5,3209.4,0.69339099]
[1737609212811,1.84359548,3209.5,3209.4,0.69339099]
[1737609214510,1.84359173,3209.5,3209.4,0.69339099]
[1737609215512,1.84359173,3209.5,3209.4,41.49339099]
[1737609216110,1.84359826,3209.5,3209.4,41.49339099]
[1737609218510,0.40501918,3209.8,3209.4,41.49339099]
[1737609218719,0.62361,3209.5,3209.4,41.49339099]
[1737609219221,0.67682546,3209.5,3209.4,41.49339099]
[1737609221114,0.67681163,3209.5,3209.4,41.49339099]
[1737609222615,0.62361,3209.5,3209.4,41.49339099]
[1737609222819,0.67681341,3209.5,3209.4,41.49339099]
[1737609229426,0.67677676,3209.5,3209.4,41.49339099]
[1737609230621,0.62361,3209.5,3209.4,41.49339099]
[1737609232024,0.6236,3209.6,3209.4,41.49339099]
[1737609232220,1.16681089,3209.8,3209.4,41.49339099]
[1737609232420,0.62359,3209.7,3209.4,41.49339099]
[1737609233027,1.16681089,3209.8,3209.4,41.49339099]
[1737609233325,0.6236,3209.6,3209.4,41.49339099]
[1737609233738,1.79038089,3209.8,3209.4,41.49339099]
[1737609234027,0.62357,3209.7,3209.4,41.49339099]
[1737609234330,1.79037089,3209.8,3209.4,42.11702099]
[1737609234732,1.16681089,3210.0,3209.7,3.2078]
[1737609235027,12.4553983,3210.1,3209.8,1.16681089]
[1737609235230,11.4677983,3210.1,3209.8,1.16681089]
[1737609235420,12.0912983,3210.1,3209.9,40.8]
[1737609236622,11.4677983,3210.1,3210.0,1.16681089]
[1737609236827,11.4677983,3210.1,3210.0,1.79032089]
[1737609237226,11.4677983,3210.1,3210.0,42.59032089]
[1737609237426,7.2304648,3210.1,3210.0,47.59032089]
[1737609237628,1.21418897,3210.1,3210.0,47.59032089]
[1737609237825,0.62338,3210.7,3210.3,0.62345]
[1737609238026,0.62338,3210.7,3210.6,3.2078]
[1737609238427,0.62335,3210.9,3210.6,4.37461089]
[1737609238931,15.82172408,3211.0,3210.6,4.37461089]
[1737609239132,1.16681089,3211.0,3210.6,4.37461089]
[1737609239435,0.62337,3210.8,3210.6,4.37461089]
[1737609239634,0.62337,3210.8,3210.6,3.2078]
[1737609239832,0.62335,3210.9,3210.6,3.2078]
[1737609240233,5.67012057,3211.3,3210.6,3.2078]
[1737609240524,0.05322545,3211.2,3210.6,3.2078]
[1737609240731,0.05322545,3211.2,3210.7,0.62337]
[1737609240931,3.83106,3211.3,3210.7,2.01187]
[1737609241132,0.62326,3211.3,3211.1,3.2078]
[1737609241437,0.62326,3211.3,3211.2,0.6311]
[1737609241635,0.67648156,3211.3,3211.2,0.6311]
[1737609241935,0.62328,3211.2,3211.1,3.2078]
[1737609242236,0.67650156,3211.2,3211.1,3.2078]
[1737609244436,0.6765051,3211.2,3211.1,3.2078]
[1737609245231,0.67650561,3211.2,3211.1,3.2078]
[1737609245637,0.67650539,3211.2,3211.1,3.2078]
[1737609248638,0.67650501,3211.2,3211.1,3.2078]
[1737609249737,1.31540501,3211.2,3211.1,3.2078]
[1737609250139,1.31540564,3211.2,3211.1,3.2078]
[1737609250442,1.31540555,3211.2,3211.1,3.2078]
[1737609251735,1.26218,3211.2,3211.1,3.2078]
[1737609251942,1.31540543,3211.2,3211.1,3.2078]
[1737609255443,0.62322,3211.5,3211.1,3.2078]
[1737609255644,0.67646164,3211.4,3211.2,0.6245]
[1737609255839,0.05322164,3211.3,3211.2,1.2543]
[1737609257850,0.62326,3211.3,3211.2,1.2543]
[1737609258053,0.62324,3211.5,3211.2,1.2543]
[1737609258247,0.05321996,3211.4,3211.2,1.2543]
[1737609258549,0.62324,3211.5,3211.2,1.2543]
[1737609258751,0.05321943,3211.4,3211.2,1.2543]
[1737609259150,0.67645943,3211.4,3211.2,1.2543]
[1737609259354,0.62324,3211.5,3211.2,1.2543]
[1737609259650,0.05321939,3211.4,3211.2,1.2543]
[1737609260151,0.62324,3211.5,3211.2,1.2543]
[1737609260346,0.05321923,3211.4,3211.2,1.2543]
[1737609261051,0.67646923,3211.4,3211.2,1.2543]
[1737609261250,0.62325,3211.4,3211.2,1.2543]
[1737609263554,1.16523066,3211.5,3211.2,1.2543]
[1737609264054,1.78846066,3211.5,3211.2,1.2543]
[1737609264451,1.16523066,3211.5,3211.2,1.2543]
[1737609264762,0.62325,3211.4,3211.2,1.2543]
[1737609265447,1.16523066,3211.5,3211.2,1.2543]
[1737609265648,1.78847066,3211.5,3211.2,1.2543]
[1737609266864,0.62324,3211.4,3211.2,1.2543]
[1737609267063,1.38091,3211.6,3211.2,2.41953066]
[1737609267570,0.7577,3211.6,3211.2,2.41953066]
[1737609267862,0.62323,3211.5,3211.2,2.41953066]
[1737609268064,0.7577,3211.6,3211.2,2.41953066]
[1737609268365,0.62324,3211.5,3211.2,2.41953066]
[1737609268556,0.7577,3211.6,3211.2,2.41953066]
[1737609268751,0.62326,3211.3,3211.2,2.41953066]
[1737609268962,0.62326,3211.3,3211.2,1.2543]
[1737609269266,0.7577,3211.6,3211.2,1.2543]
[1737609269267,0.7577,3211.6,3211.2,2.41953066]
[1737609269565,0.62326,3211.4,3211.2,2.41953066]
[1737609269963,0.7577,3211.6,3211.2,2.41953066]
[1737609270265,0.62326,3211.3,3211.2,2.41953066]
[1737609270969,0.62326,3211.3,3211.2,1.16523066]
[1737609271178,0.62325,3211.4,3211.2,1.16523066]
[1737609271469,0.62326,3211.3,3211.2,1.16523066]
[1737609272770,1.16523066,3211.7,3211.2,1.16523066]
[1737609272963,0.62325,3211.4,3211.2,1.16523066]
[1737609273862,0.62325,3211.4,3211.2,1.78851066]
[1737609274263,0.62324,3211.5,3211.2,1.78851066]
[1737609275670,0.62324,3211.5,3211.2,1.78850066]
[1737609275871,0.62324,3211.4,3211.2,1.78850066]
[1737609276072,1.16523066,3211.7,3211.2,1.78850066]
[1737609276373,0.62323,3211.5,3211.2,1.78850066]
[1737609277071,1.16523066,3211.7,3211.2,1.16523066]
[1737609277273,0.62319,3211.7,3211.5,3.2078]
[1737609277769,0.62318,3211.8,3211.5,3.83102]
[1737609278574,1.78839066,3211.9,3211.5,3.83102]
[1737609278773,0.05321345,3211.8,3211.5,3.83102]
[1737609278977,0.05321345,3211.8,3211.5,3.2078]
[1737609279278,0.05321345,3211.8,3211.5,3.83101]
[1737609279774,0.05321345,3211.8,3211.5,3.2078]
[1737609280674,1.16523066,3211.7,3211.5,3.2078]
[1737609282674,1.78839066,3211.9,3211.5,3.2078]
[1737609282866,0.05321333,3211.8,3211.5,3.2078]
[1737609283978,0.67638333,3211.8,3211.5,3.2078]
[1737609284277,0.62317,3211.8,3211.5,3.2078]
[1737609284578,0.62318,3211.7,3211.5,3.2078]
[1737609284775,1.16523066,3211.7,3211.5,3.2078]
[1737609285082,0.67641743,3211.6,3211.5,3.2078]
[1737609285278,0.05321743,3211.6,3211.1,44.0078]
[1737609285465,1.78851066,3211.2,3211.1,44.0078]
[1737609285669,1.84172809,3211.2,3211.1,3.2078]
[1737609286178,1.84172809,3211.2,3211.1,44.0078]
[1737609286578,1.84173627,3211.2,3211.1,44.0078]
[1737609294569,0.05322462,3211.2,3211.1,44.0078]
[1737609294775,0.62327,3211.3,3211.1,44.0078]
[1737609295177,1.16523066,3211.2,3211.1,44.0078]
[1737609295672,1.78851066,3211.2,3211.1,44.0078]
[1737609296673,1.16523066,3211.2,3211.1,44.0078]
[1737609296876,1.78851066,3211.2,3211.1,44.0078]
[1737609297781,1.16523066,3211.2,3211.1,44.0078]
[1737609297981,1.84173362,3211.2,3211.1,44.0078]
[1737609299079,1.78851066,3211.2,3211.1,44.0078]
[1737609299274,1.84173358,3211.2,3211.1,44.0078]
[1737609300179,1.78851066,3211.2,3211.1,44.0078]
[1737609300381,1.8417338,3211.2,3211.1,44.0078]
[1737609301370,1.78851066,3211.2,3211.1,44.0078]
[1737609301776,1.84173386,3211.2,3211.1,44.0078]
[1737609302173,0.0532232,3211.2,3211.1,44.0078]
[1737609302375,0.6232,3211.7,3211.1,44.63109]
[1737609302582,0.6232,3211.7,3211.3,1.16523066]
[1737609302583,0.05321634,3211.6,3211.3,1.16523066]
[1737609302878,1.16523066,3211.6,3211.3,1.16523066]
[1737609303078,1.16523066,3211.6,3211.5,40.8]
[1737609303887,1.78843066,3211.6,3211.5,40.8]
[1737609304281,1.84164742,3211.6,3211.5,40.8]
[1737609305683,0.62327,3211.3,3211.1,3.2078]
[1737609305889,1.16523066,3211.4,3211.1,3.2078]
[1737609306090,0.62326,3211.3,3211.1,3.2078]
[1737609306388,0.62326,3211.3,3211.2,40.8]
[1737609307585,1.16523066,3211.5,3211.2,40.8]
[1737609307790,1.78849066,3211.3,3211.2,40.8]
[1737609308494,1.16523066,3211.3,3211.2,40.8]
[1737609308686,0.62325,3211.4,3211.2,40.8]
[1737609309386,1.78846066,3211.5,3211.2,40.8]
[1737609309686,1.16523066,3211.5,3211.2,40.8]
[1737609309892,0.62322,3211.6,3211.2,40.8]
[1737609310185,0.62322,3211.6,3211.2,41.42327]
[1737609310489,1.16523066,3211.7,3211.5,3.2078]
[1737609310689,1.78843066,3211.7,3211.5,3.2078]
[1737609310884,1.16523066,3211.7,3211.5,3.2078]
[1737609311093,0.6232,3211.6,3211.5,3.2078]
[1737609311590,1.78842066,3211.7,3211.5,3.2078]
[1737609312194,1.16523066,3211.7,3211.5,3.2078]
[1737609314587,5.34951,3212.7,3211.5,3.2078]
[1737609314588,1.16523066,3212.3,3211.8,0.62316]
[1737609314887,0.05320744,3212.2,3212.0,3.2078]
[1737609315387,1.16523066,3212.1,3212.0,3.2078]
[1737609315993,1.21843588,3212.1,3212.0,3.2078]
[1737609316191,1.16523066,3212.3,3212.0,3.83093]
[1737609316391,1.16523066,3212.3,3212.1,40.8]
[1737609316591,1.16523066,3212.3,3212.1,41.4231]
[1737609316793,1.16523066,3212.3,3212.1,40.8]
[1737609317794,1.16523066,3212.5,3212.1,40.8]
[1737609317990,1.16523066,3212.5,3212.1,41.42311]
[1737609317991,0.05320149,3212.4,3212.1,41.42311]
[1737609318589,0.05320149,3212.4,3212.1,40.8]
[1737609320791,1.78826066,3212.5,3212.1,40.8]
[1737609321193,1.16523066,3212.5,3212.1,41.96523066]
[1737609321492,0.05320117,3212.4,3212.1,41.96523066]
[1737609321689,1.16523066,3212.5,3212.2,0.62308]
[1737609321888,3.2078,3212.6,3212.3,1.16523066]
[1737609322089,0.05320081,3212.5,3212.2,0.62308]
[1737609322299,0.05320081,3212.5,3212.4,40.8]
[1737609322591,1.21843147,3212.5,3212.4,40.8]
[1737609322998,1.84146147,3212.5,3212.4,40.8]
[1737609323190,1.21843147,3212.5,3212.4,40.8]
[1737609324098,1.21843176,3212.5,3212.4,40.8]
[1737609325586,1.21843125,3212.5,3212.4,40.8]
[1737609326803,1.16523066,3212.5,3212.4,40.8]
[1737609327004,1.21843102,3212.5,3212.4,40.8]
[1737609327196,1.16523066,3212.5,3212.4,40.8]
[1737609328801,1.16523066,3212.9,3212.4,44.0078]
[1737609329097,1.16523066,3212.9,3212.7,3.2078]
[1737609329302,0.62295,3212.9,3212.8,0.5197]
[1737609329502,1.84137443,3212.9,3212.8,0.5197]
[1737609329702,2.35737443,3212.9,3212.8,0.5197]
[1737609330300,1.19214377,3212.9,3212.8,0.5197]
[1737609330701,1.1921488,3212.9,3212.8,0.5197]
[1737609333899,0.5691988,3212.9,3212.8,0.5197]
[1737609334801,1.1921488,3212.9,3212.8,0.5197]
[1737609335007,0.5691988,3212.9,3212.8,0.5197]
[1737609335404,1.1921488,3212.9,3212.8,0.5197]
[1737609335805,0.5691988,3212.9,3212.8,0.5197]
[1737609336000,1.1921488,3212.9,3212.8,0.5197]
[1737609337198,0.56919548,3212.9,3212.8,0.5197]
[1737609338409,0.516,3212.9,3212.8,0.5197]
[1737609338607,0.516,3212.9,3212.8,1.68493066]
[1737609338912,0.516,3212.9,3212.8,46.31570066]
[1737609341709,0.516,3212.9,3212.8,45.15047]
[1737609345613,0.516,3212.9,3212.8,45.3993329]
[1737609345807,0.516,3212.9,3212.8,50.3993329]
[1737609346509,0.24304156,3212.9,3212.8,50.3993329]
[1737609346717,0.32880637,3213.0,3212.9,0.62295]
[1737609347209,0.32880637,3213.0,3212.9,5.62295]
[1737609347405,0.32880637,3213.0,3212.9,6.12085]
[1737609347914,0.32880637,3213.0,3212.9,46.92085]
[1737609349109,0.62285,3213.5,3213.3,0.62286]
[1737609349307,0.62285,3213.5,3213.4,4.7064]
[1737609350007,0.62285,3213.5,3213.4,45.5064]
[1737609351511,0.62285,3213.5,3213.4,44.4891]
[1737609351705,3.13447431,3213.5,3213.4,0.4813]
[1737609352016,3.13447431,3213.5,3213.0,3.2078]
[1737609352017,0.62299,3212.7,3212.6,3.2078]
[1737609352213,0.62299,3212.7,3212.6,44.0078]
[1737609352516,0.67618708,3212.7,3212.6,44.0078]
[1737609353206,3.13462874,3212.7,3212.6,44.0078]
[1737609353607,2.45844166,3212.7,3212.6,44.0078]
[1737609353811,2.51163985,3212.7,3212.6,44.0078]
[1737609354011,0.05319819,3212.7,3212.6,44.0078]
[1737609354209,0.53259819,3212.7,3212.6,44.0078]
[1737609355010,0.53259819,3212.7,3212.6,40.8]
[1737609355209,0.53259819,3212.7,3212.6,41.8055]
[1737609356014,2.45844166,3213.0,3212.6,41.8055]
[1737609356312,0.5139,3213.0,3212.7,3.7058]
[1737609356513,0.05319193,3212.9,3212.7,3.7058]
[1737609357024,0.5139,3213.0,3212.7,3.7058]
[1737609357913,0.5139,3213.0,3212.8,40.8]
[1737609358111,1.13685,3213.0,3212.8,40.8]
[1737609358511,0.05319146,3212.9,3212.8,40.8]
[1737609358920,1.13685,3213.0,3212.8,40.8]
[1737609360018,0.05319214,3212.9,3212.8,40.8]
[1737609360317,1.13685,3213.0,3212.8,40.8]
[1737609360518,0.5139,3213.0,3212.8,40.8]
[1737609361418,0.62295,3212.9,3212.8,40.8]
[1737609361917,0.67614263,3212.9,3212.8,40.8]
[1737609363214,0.67614394,3212.9,3212.8,40.8]
[1737609367917,0.67614571,3212.9,3212.8,40.8]
[1737609368525,0.676146,3212.9,3212.8,40.8]
[1737609371026,0.053196,3212.9,3212.6,0.5274]
[1737609371221,3.08143166,3212.7,3212.5,0.0046705]
[1737609371418,0.62313,3212.0,3211.8,3.2078]
[1737609371618,3.08157166,3212.0,3211.8,3.2078]
[1737609371918,0.62313,3212.0,3211.8,3.2078]
[1737609372226,0.62311,3212.1,3211.8,3.2078]
[1737609373114,0.0046705,3212.3,3211.9,1.11704331]
[1737609373424,0.0046705,3212.3,3212.2,3.2078]
[1737609373619,0.0046705,3212.3,3212.2,3.83089]
[1737609374126,0.0046705,3212.3,3212.2,44.63089]
[1737609374521,0.62289,3213.3,3212.7,0.62299]
[1737609374726,0.0531917,3213.2,3212.8,1.59406]
[1737609375026,2.45844166,3213.5,3213.1,3.2078]
[1737609375218,0.05318409,3213.4,3213.1,3.2078]
[1737609375413,2.96754166,3213.8,3213.1,3.83071]
[1737609375414,0.67598409,3213.7,3213.1,3.83071]
[1737609375619,0.05318135,3213.6,3213.2,40.8]
[1737609376022,0.05318135,3213.6,3213.3,0.4911]
[1737609376221,2.96754166,3213.8,3213.5,3.2078]
[1737609376421,0.0531796,3213.7,3213.5,3.2078]
[1737609376722,3.2078,3213.9,3213.5,3.2078]
[1737609377031,0.05317621,3213.8,3213.6,40.8]
[1737609377721,0.05317621,3213.8,3213.7,0.5021]
[1737609377922,0.05317743,3213.8,3213.7,0.5021]
[1737609378524,0.05317743,3213.8,3213.7,41.9249]
[1737609378724,0.62267,3214.4,3213.7,41.92489]
[1737609378922,0.0531702,3214.3,3214.0,3.2078]
[1737609379421,3.08111166,3214.4,3214.1,0.5246]
[1737609379626,0.05316859,3214.3,3214.1,0.5246]
[1737609379822,0.6227,3214.2,3214.1,0.5246]
[1737609380031,0.05317041,3214.2,3214.1,0.5246]
[1737609380329,0.62269,3214.3,3214.1,0.5246]
[1737609381025,0.62271,3214.2,3214.0,3.2078]
[1737609381222,3.08116166,3214.1,3214.0,3.2078]
[1737609381423,3.1343335,3214.1,3214.0,3.2078]
[1737609381624,2.5116135,3214.1,3214.0,3.2078]
[1737609382232,0.05317184,3214.1,3214.0,3.2078]
[1737609382430,0.05316873,3214.3,3214.0,3.2078]
[1737609382634,3.2078,3214.7,3214.0,3.83053]
[1737609382635,0.05316898,3214.2,3214.0,3.83053]
[1737609382933,5.66624166,3214.7,3214.0,3.2078]
[1737609383136,0.62265,3214.5,3214.0,3.2078]
[1737609383431,0.0531651,3214.4,3214.0,3.2078]
[1737609384039,2.51160676,3214.4,3214.0,3.2078]
[1737609384237,0.05316574,3214.3,3214.0,3.2078]
[1737609384537,3.08116166,3214.1,3214.0,3.2078]
[1737609384730,3.08116166,3214.1,3213.7,41.3021]
[1737609384731,0.62278,3213.8,3213.7,41.3021]
[1737609384934,0.62278,3213.8,3213.7,0.5021]
[1737609384935,3.13439038,3213.8,3213.7,0.5021]
[1737609387937,3.13440512,3213.8,3213.7,0.5021]
[1737609389351,3.08122166,3213.8,3213.7,0.5021]
[1737609389642,3.13440713,3213.8,3213.7,0.5021]
[1737609391238,0.62285,3213.4,3213.3,0.0046705]
[1737609391438,0.62285,3213.4,3211.6,2.45844166]
[1737609391439,0.62303,3212.5,3212.4,3.7306]
[1737609391844,0.62303,3212.5,3212.4,44.5306]
[1737609392843,0.62302,3212.6,3212.4,44.5306]
[1737609394342,0.623,3212.7,3212.4,44.5306]
[1737609394553,0.623,3212.7,3212.5,0.481]
[1737609394742,2.46311216,3212.8,3212.5,0.481]